[Event "Titled Tuesday Blitz January 17 Early 2023"]
[White "surrenderPLS"]
[Black "Kalajzic, Ivan"]
[BlackFideId "14506378"]
[WhiteElo "2491"]
[BlackElo "2062"]
[Result "0-1"]
[Round "06"]
[TimeControl "180+2"]
[Date "2023.01.17"]
[WhiteClock "0:00:10"]
[BlackClock "0:00:23"]

1. e4 {[%clk 0:03:00]}  Nc6 {[%clk 0:02:55]} 2. Nf3 {[%clk 0:03:00]}  d6 {[%clk 0:02:52]} 3. d4 {[%clk 0:03:00]}  Bg4 {[%clk 0:02:52]} 4. d5 {[%clk 0:02:59]}  Ne5 {[%clk 0:02:51]} 5. Nxe5 {[%clk 0:02:22]}  Bxd1 {[%clk 0:02:50]} 6. Bb5+ {[%clk 0:02:22]}  c6 {[%clk 0:02:50]} 7. dxc6 {[%clk 0:02:22]}  Qa5+ {[%clk 0:02:47]} 8. Nc3 {[%clk 0:02:16]}  a6 {[%clk 0:02:46]} 9. cxb7+ {[%clk 0:02:15]}  axb5 {[%clk 0:02:45]} 10. b4 {[%clk 0:00:43]}  Qa6 {[%clk 0:02:33]} 11. bxa8=Q+ {[%clk 0:00:29]}  Qxa8 {[%clk 0:02:32]} 12. Kxd1 {[%clk 0:00:19]}  dxe5 {[%clk 0:02:32]} 13. a4 {[%clk 0:00:17]}  e6 {[%clk 0:02:25]} 14. Be3 {[%clk 0:00:14]}  Bxb4 {[%clk 0:02:21]} 15. Nxb5 {[%clk 0:00:14]}  Qa5 {[%clk 0:01:59]} 16. Ke2 {[%clk 0:00:11]}  Ne7 {[%clk 0:01:55]} 17. c3 {[%clk 0:00:11]}  O-O {[%clk 0:01:42]} 18. cxb4 {[%clk 0:00:11]}  Qxb4 {[%clk 0:01:43]} 19. Rhb1 {[%clk 0:00:11]}  Qxe4 {[%clk 0:01:42]} 20. a5 {[%clk 0:00:10]}  f5 {[%clk 0:01:36]} 21. f3 {[%clk 0:00:09]}  Qc4+ {[%clk 0:01:36]} 22. Kf2 {[%clk 0:00:09]}  Nd5 {[%clk 0:01:34]} 23. Bd2 {[%clk 0:00:05]}  Rd8 {[%clk 0:01:26]} 24. a6 {[%clk 0:00:05]}  Qc5+ {[%clk 0:01:20]} 25. Ke2 {[%clk 0:00:04]}  e4 {[%clk 0:01:07]} 26. fxe4 {[%clk 0:00:03]}  Qc4+ {[%clk 0:01:05]} 27. Ke1 {[%clk 0:00:04]}  Qxe4+ {[%clk 0:01:05]} 28. Kf2 {[%clk 0:00:04]}  Nf4 {[%clk 0:01:03]} 29. Bxf4 {[%clk 0:00:04]}  Qxf4+ {[%clk 0:01:03]} 30. Kg1 {[%clk 0:00:05]}  Qe3+ {[%clk 0:00:47]} 31. Kh1 {[%clk 0:00:05]}  f4 {[%clk 0:00:40]} 32. a7 {[%clk 0:00:05]}  f3 {[%clk 0:00:39]} 33. a8=Q {[%clk 0:00:05]}  Rxa8 {[%clk 0:00:39]} 34. Rxa8+ {[%clk 0:00:04]}  Kf7 {[%clk 0:00:39]} 35. Rf1 {[%clk 0:00:04]}  f2 {[%clk 0:00:37]} 36. Ra7+ {[%clk 0:00:04]}  Kg6 {[%clk 0:00:37]} 37. Ra2 {[%clk 0:00:05]}  Qd3 {[%clk 0:00:35]} 38. Raxf2 {[%clk 0:00:06]}  Qxb5 {[%clk 0:00:35]} 39. h3 {[%clk 0:00:07]}  h5 {[%clk 0:00:34]} 40. Re1 {[%clk 0:00:07]}  Qd5 {[%clk 0:00:33]} 41. Rfe2 {[%clk 0:00:08]}  Kf6 {[%clk 0:00:33]} 42. Kh2 {[%clk 0:00:09]}  g5 {[%clk 0:00:32]} 43. Rf1+ {[%clk 0:00:09]}  Kg6 {[%clk 0:00:32]} 44. Ref2 {[%clk 0:00:09]}  Qd6+ {[%clk 0:00:32]} 45. Kh1 {[%clk 0:00:09]}  e5 {[%clk 0:00:32]} 46. Re1 {[%clk 0:00:09]}  Qd4 {[%clk 0:00:29]} 47. Rfe2 {[%clk 0:00:09]}  Kf5 {[%clk 0:00:30]} 48. Kh2 {[%clk 0:00:09]}  g4 {[%clk 0:00:29]} 49. hxg4+ {[%clk 0:00:09]}  hxg4 {[%clk 0:00:26]} 50. Rxe5+ {[%clk 0:00:09]}  Qxe5+ {[%clk 0:00:23]} 51. Rxe5+ {[%clk 0:00:10]}  Kxe5 {[%clk 0:00:23]} 0-1


[Site "https://www.chess.com"]

[Event "Titled Tuesday Blitz January 17 Early 2023"]
[White "Levitan, Caleb Levi"]
[Black "Reprintsev, Alexander"]
[WhiteFideId "14332620"]
[BlackFideId "14100541"]
[WhiteElo "2129"]
[BlackElo "2253"]
[Result "0-1"]
[Round "06"]
[TimeControl "180+2"]
[Date "2023.01.17"]
[WhiteClock "0:00:52"]
[BlackClock "0:02:31"]

1. e4 {[%clk 0:03:00]}  d5 {[%clk 0:03:00]} 2. exd5 {[%clk 0:03:00]}  Qxd5 {[%clk 0:03:00]} 3. Nc3 {[%clk 0:03:00]}  Qa5 {[%clk 0:03:00]} 4. d4 {[%clk 0:03:00]}  Nf6 {[%clk 0:02:58]} 5. Bc4 {[%clk 0:02:58]}  Bg4 {[%clk 0:02:57]} 6. Nf3 {[%clk 0:02:50]}  Nc6 {[%clk 0:02:52]} 7. Be2 {[%clk 0:02:05]}  O-O-O {[%clk 0:02:51]} 8. Be3 {[%clk 0:02:04]}  e5 {[%clk 0:02:51]} 9. Nd2 {[%clk 0:01:21]}  Bxe2 {[%clk 0:02:45]} 10. Nxe2 {[%clk 0:01:20]}  exd4 {[%clk 0:02:44]} 11. Bg5 {[%clk 0:01:15]}  Qxg5 {[%clk 0:02:43]} 12. O-O {[%clk 0:01:12]}  Bd6 {[%clk 0:02:38]} 13. Nf3 {[%clk 0:01:10]}  Qh5 {[%clk 0:02:32]} 14. Nexd4 {[%clk 0:00:52]}  Nxd4 {[%clk 0:02:31]} 0-1


[Site "https://www.chess.com"]

[Event "Titled Tuesday Blitz January 17 Early 2023"]
[White "Mrudul Dehankar"]
[Black "Baches Garcia, Guillermo"]
[WhiteFideId "25096990"]
[BlackFideId "2209764"]
[WhiteElo "2030"]
[BlackElo "2327"]
[Result "1/2-1/2"]
[Round "06"]
[TimeControl "180+2"]
[Date "2023.01.17"]
[WhiteClock "0:00:17"]
[BlackClock "0:00:57"]

1. e4 {[%clk 0:02:28]}  c5 {[%clk 0:03:00]} 2. Nf3 {[%clk 0:02:28]}  d6 {[%clk 0:03:01]} 3. d4 {[%clk 0:02:28]}  cxd4 {[%clk 0:03:02]} 4. Nxd4 {[%clk 0:02:28]}  Nf6 {[%clk 0:03:02]} 5. Nc3 {[%clk 0:02:29]}  Nc6 {[%clk 0:03:03]} 6. Bg5 {[%clk 0:02:28]}  e6 {[%clk 0:03:03]} 7. Qd2 {[%clk 0:02:28]}  h6 {[%clk 0:03:04]} 8. Bxf6 {[%clk 0:02:21]}  gxf6 {[%clk 0:03:05]} 9. O-O-O {[%clk 0:02:20]}  a6 {[%clk 0:03:05]} 10. f4 {[%clk 0:02:17]}  Bd7 {[%clk 0:03:05]} 11. Bc4 {[%clk 0:02:05]}  Qb6 {[%clk 0:03:03]} 12. Nxc6 {[%clk 0:01:57]}  Qxc6 {[%clk 0:03:03]} 13. Bb3 {[%clk 0:01:53]}  h5 {[%clk 0:02:57]} 14. Kb1 {[%clk 0:01:47]}  O-O-O {[%clk 0:02:50]} 15. Qf2 {[%clk 0:01:25]}  Kb8 {[%clk 0:02:46]} 16. f5 {[%clk 0:01:13]}  Be7 {[%clk 0:02:43]} 17. Rd3 {[%clk 0:01:09]}  Qc5 {[%clk 0:02:36]} 18. Qd2 {[%clk 0:00:46]}  Qe5 {[%clk 0:02:28]} 19. g3 {[%clk 0:00:32]}  h4 {[%clk 0:02:27]} 20. g4 {[%clk 0:00:32]}  h3 {[%clk 0:02:18]} 21. Rg1 {[%clk 0:00:32]}  Bc6 {[%clk 0:02:12]} 22. Qe2 {[%clk 0:00:24]}  Bf8 {[%clk 0:02:09]} 23. Rgg3 {[%clk 0:00:23]}  Bh6 {[%clk 0:02:04]} 24. Rxh3 {[%clk 0:00:22]}  Bf4 {[%clk 0:02:03]} 25. Rxh8 {[%clk 0:00:12]}  Rxh8 {[%clk 0:02:04]} 26. h3 {[%clk 0:00:13]}  Qc5 {[%clk 0:02:02]} 27. a3 {[%clk 0:00:12]}  Be5 {[%clk 0:01:59]} 28. Ka2 {[%clk 0:00:12]}  b5 {[%clk 0:01:54]} 29. fxe6 {[%clk 0:00:10]}  fxe6 {[%clk 0:01:54]} 30. Bxe6 {[%clk 0:00:10]}  b4 {[%clk 0:01:51]} 31. axb4 {[%clk 0:00:10]}  Qxb4 {[%clk 0:01:51]} 32. Nd1 {[%clk 0:00:11]}  Bb5 {[%clk 0:01:47]} 33. c4 {[%clk 0:00:10]}  Ba4 {[%clk 0:01:36]} 34. Qd2 {[%clk 0:00:10]}  Qxd2 {[%clk 0:01:31]} 35. Rxd2 {[%clk 0:00:09]}  Rxh3 {[%clk 0:01:30]} 36. Nc3 {[%clk 0:00:08]}  Bxc3 {[%clk 0:01:25]} 37. bxc3 {[%clk 0:00:08]}  Rxc3 {[%clk 0:01:24]} 38. Rxd6 {[%clk 0:00:09]}  Re3 {[%clk 0:01:18]} 39. Rxa6 {[%clk 0:00:08]}  Bc2 {[%clk 0:01:17]} 40. Rb6+ {[%clk 0:00:07]}  Kc7 {[%clk 0:01:16]} 41. Ra6 {[%clk 0:00:07]}  Rxe4 {[%clk 0:01:10]} 42. Bf5 {[%clk 0:00:07]}  Rxc4 {[%clk 0:01:10]} 43. Rxf6 {[%clk 0:00:07]}  Bxf5 {[%clk 0:01:08]} 44. gxf5 {[%clk 0:00:07]}  Kd7 {[%clk 0:01:08]} 45. Kb3 {[%clk 0:00:07]}  Rf4 {[%clk 0:01:08]} 46. Kc3 {[%clk 0:00:08]}  Ke7 {[%clk 0:01:08]} 47. Ra6 {[%clk 0:00:09]}  Rxf5 {[%clk 0:01:07]} 48. Kd4 {[%clk 0:00:09]}  Rh5 {[%clk 0:01:07]} 49. Ke4 {[%clk 0:00:09]}  Kd7 {[%clk 0:01:07]} 50. Kd4 {[%clk 0:00:10]}  Kc7 {[%clk 0:01:07]} 51. Kc4 {[%clk 0:00:11]}  Kb7 {[%clk 0:01:08]} 52. Rg6 {[%clk 0:00:11]}  Rh4+ {[%clk 0:01:08]} 53. Kd5 {[%clk 0:00:11]}  Rh1 {[%clk 0:01:08]} 54. Rg7+ {[%clk 0:00:11]}  Kb6 {[%clk 0:01:08]} 55. Rg6+ {[%clk 0:00:12]}  Kb5 {[%clk 0:01:09]} 56. Kd6 {[%clk 0:00:12]}  Rd1+ {[%clk 0:01:09]} 57. Kc7 {[%clk 0:00:12]}  Rf1 {[%clk 0:01:08]} 58. Kb7 {[%clk 0:00:13]}  Rf7+ {[%clk 0:01:06]} 59. Kc8 {[%clk 0:00:13]}  Rh7 {[%clk 0:01:07]} 60. Kd8 {[%clk 0:00:13]}  Kc5 {[%clk 0:01:06]} 61. Kc8 {[%clk 0:00:14]}  Kd5 {[%clk 0:01:07]} 62. Kd8 {[%clk 0:00:14]}  Ke5 {[%clk 0:01:07]} 63. Kc8 {[%clk 0:00:15]}  Kf5 {[%clk 0:01:07]} 64. Ra6 {[%clk 0:00:15]}  Rg7 {[%clk 0:01:06]} 65. Kd8 {[%clk 0:00:15]}  Rb7 {[%clk 0:01:05]} 66. Ke8 {[%clk 0:00:15]}  Ke5 {[%clk 0:01:04]} 67. Kd8 {[%clk 0:00:15]}  Kd5 {[%clk 0:01:05]} 68. Kc8 {[%clk 0:00:16]}  Rh7 {[%clk 0:01:05]} 69. Kd8 {[%clk 0:00:17]}  Rh8+ {[%clk 0:01:03]} 70. Kd7 {[%clk 0:00:16]}  Rh7+ {[%clk 0:01:03]} 71. Kd8 {[%clk 0:00:16]}  Kc5 {[%clk 0:01:03]} 72. Rg6 {[%clk 0:00:16]}  Kd5 {[%clk 0:01:02]} 73. Ke8 {[%clk 0:00:16]}  Ke5 {[%clk 0:01:02]} 74. Kd8 {[%clk 0:00:17]}  Kf5 {[%clk 0:01:03]} 75. Ra6 {[%clk 0:00:17]}  Rb7 {[%clk 0:01:02]} 76. Kc8 {[%clk 0:00:17]}  Rb1 {[%clk 0:01:02]} 77. Kd7 {[%clk 0:00:17]}  Ke5 {[%clk 0:01:02]} 78. Ke7 {[%clk 0:00:17]}  Rc1 {[%clk 0:01:00]} 79. Ra5+ {[%clk 0:00:17]}  Kf4 {[%clk 0:00:59]} 80. Kd6 {[%clk 0:00:17]}  Rd1+ {[%clk 0:00:59]} 81. Ke6 {[%clk 0:00:17]}  Re1+ {[%clk 0:00:59]} 82. Kf6 {[%clk 0:00:18]}  Rd1 {[%clk 0:00:58]} 83. Ra4+ {[%clk 0:00:18]}  Ke3 {[%clk 0:00:58]} 84. Ke5 {[%clk 0:00:18]}  Rd8 {[%clk 0:00:57]} 85. Ra3+ {[%clk 0:00:18]}  Rd3 {[%clk 0:00:57]} 86. Rxd3+ {[%clk 0:00:17]}  Kxd3 {[%clk 0:00:57]} 1/2-1/2


[Site "https://www.chess.com"]

[Event "Titled Tuesday Blitz January 17 Early 2023"]
[White "Buscar, Michael"]
[Black "Kiseleva, Arina"]
[WhiteFideId "2603616"]
[BlackFideId "4164989"]
[WhiteElo "2041"]
[BlackElo "1962"]
[Result "1-0"]
[Round "06"]
[TimeControl "180+2"]
[Date "2023.01.17"]
[WhiteClock "0:00:10"]
[BlackClock "0:00:01"]

1. Nf3 {[%clk 0:02:52]}  d5 {[%clk 0:02:49]} 2. b3 {[%clk 0:02:51]}  c6 {[%clk 0:02:47]} 3. Bb2 {[%clk 0:02:51]}  Nd7 {[%clk 0:02:46]} 4. e3 {[%clk 0:02:44]}  Ngf6 {[%clk 0:02:45]} 5. c4 {[%clk 0:02:43]}  Qc7 {[%clk 0:02:30]} 6. cxd5 {[%clk 0:02:36]}  Nxd5 {[%clk 0:02:27]} 7. Be2 {[%clk 0:02:33]}  N7f6 {[%clk 0:02:23]} 8. O-O {[%clk 0:02:29]}  Bg4 {[%clk 0:02:22]} 9. d3 {[%clk 0:02:22]}  e6 {[%clk 0:02:18]} 10. a3 {[%clk 0:02:21]}  Be7 {[%clk 0:02:17]} 11. Nbd2 {[%clk 0:02:20]}  O-O {[%clk 0:02:05]} 12. Qc2 {[%clk 0:02:17]}  Bh5 {[%clk 0:01:39]} 13. Rfe1 {[%clk 0:02:13]}  Rfd8 {[%clk 0:01:33]} 14. Nf1 {[%clk 0:02:10]}  Rac8 {[%clk 0:01:30]} 15. Rac1 {[%clk 0:02:04]}  c5 {[%clk 0:01:06]} 16. Qb1 {[%clk 0:01:57]}  Bxf3 {[%clk 0:00:49]} 17. Bxf3 {[%clk 0:01:53]}  Qd7 {[%clk 0:00:47]} 18. Bd1 {[%clk 0:01:46]}  b6 {[%clk 0:00:39]} 19. Bc2 {[%clk 0:01:44]}  Ne8 {[%clk 0:00:29]} 20. d4 {[%clk 0:01:41]}  h6 {[%clk 0:00:23]} 21. dxc5 {[%clk 0:01:37]}  Bxc5 {[%clk 0:00:22]} 22. Bh7+ {[%clk 0:01:34]}  Kh8 {[%clk 0:00:21]} 23. Ng3 {[%clk 0:01:27]}  Nef6 {[%clk 0:00:16]} 24. Bc2 {[%clk 0:01:23]}  Be7 {[%clk 0:00:14]} 25. Rcd1 {[%clk 0:01:22]}  Qe8 {[%clk 0:00:13]} 26. Ne2 {[%clk 0:00:42]}  Rc7 {[%clk 0:00:08]} 27. b4 {[%clk 0:00:39]}  Rcd7 {[%clk 0:00:05]} 28. Bb3 {[%clk 0:00:35]}  Nc7 {[%clk 0:00:04]} 29. Rxd7 {[%clk 0:00:32]}  Rxd7 {[%clk 0:00:04]} 30. Rc1 {[%clk 0:00:32]}  Qd8 {[%clk 0:00:04]} 31. Qc2 {[%clk 0:00:25]}  b5 {[%clk 0:00:04]} 32. Ba2 {[%clk 0:00:25]}  a6 {[%clk 0:00:04]} 33. Bb1 {[%clk 0:00:25]}  g6 {[%clk 0:00:03]} 34. h3 {[%clk 0:00:20]}  Kg8 {[%clk 0:00:03]} 35. Nf4 {[%clk 0:00:20]}  Ncd5 {[%clk 0:00:03]} 36. Nxg6 {[%clk 0:00:20]}  Nxe3 {[%clk 0:00:02]} 37. fxe3 {[%clk 0:00:19]}  fxg6 {[%clk 0:00:02]} 38. Qxg6+ {[%clk 0:00:18]}  Kh8 {[%clk 0:00:02]} 39. Qxh6+ {[%clk 0:00:16]}  Kg8 {[%clk 0:00:02]} 40. Rf1 {[%clk 0:00:12]}  Rd1 {[%clk 0:00:01]} 41. Qg6+ {[%clk 0:00:10]} 1-0


[Site "https://www.chess.com"]

[Event "Titled Tuesday Blitz January 17 Early 2023"]
[White "Miszler, Levente"]
[Black "Better_Chess_Faster"]
[WhiteFideId "763276"]
[WhiteElo "2271"]
[BlackElo "2030"]
[Result "1-0"]
[Round "06"]
[TimeControl "180+2"]
[Date "2023.01.17"]
[WhiteClock "0:00:58"]
[BlackClock "0:01:09"]

1. e4 {[%clk 0:02:57]}  e5 {[%clk 0:03:00]} 2. Nf3 {[%clk 0:02:54]}  Nc6 {[%clk 0:03:00]} 3. d4 {[%clk 0:02:52]}  exd4 {[%clk 0:03:00]} 4. Nxd4 {[%clk 0:02:53]}  Nf6 {[%clk 0:02:59]} 5. Nc3 {[%clk 0:02:49]}  Bb4 {[%clk 0:02:57]} 6. Nxc6 {[%clk 0:02:47]}  bxc6 {[%clk 0:02:58]} 7. Bd3 {[%clk 0:02:47]}  d5 {[%clk 0:02:57]} 8. exd5 {[%clk 0:02:46]}  O-O {[%clk 0:02:57]} 9. O-O {[%clk 0:02:46]}  Bg4 {[%clk 0:02:57]} 10. Be2 {[%clk 0:02:39]}  Bxe2 {[%clk 0:02:54]} 11. Qxe2 {[%clk 0:02:40]}  cxd5 {[%clk 0:02:53]} 12. Bg5 {[%clk 0:02:36]}  c6 {[%clk 0:02:46]} 13. Qf3 {[%clk 0:02:31]}  h6 {[%clk 0:02:44]} 14. Bh4 {[%clk 0:02:27]}  Re8 {[%clk 0:02:34]} 15. Ne2 {[%clk 0:02:23]}  Bd6 {[%clk 0:02:32]} 16. Nd4 {[%clk 0:02:21]}  Rc8 {[%clk 0:02:19]} 17. Rfe1 {[%clk 0:02:16]}  Be5 {[%clk 0:02:17]} 18. c3 {[%clk 0:02:05]}  Bxd4 {[%clk 0:01:58]} 19. cxd4 {[%clk 0:02:05]}  Re6 {[%clk 0:01:55]} 20. Rxe6 {[%clk 0:02:03]}  fxe6 {[%clk 0:01:55]} 21. Rc1 {[%clk 0:02:01]}  Qf8 {[%clk 0:01:48]} 22. Bxf6 {[%clk 0:01:52]}  Qxf6 {[%clk 0:01:47]} 23. Qxf6 {[%clk 0:01:51]}  gxf6 {[%clk 0:01:48]} 24. b4 {[%clk 0:01:51]}  Kf7 {[%clk 0:01:44]} 25. b5 {[%clk 0:01:50]}  Ke7 {[%clk 0:01:40]} 26. f4 {[%clk 0:01:31]}  Kd7 {[%clk 0:01:37]} 27. bxc6+ {[%clk 0:01:26]}  Rxc6 {[%clk 0:01:36]} 28. Rxc6 {[%clk 0:01:26]}  Kxc6 {[%clk 0:01:36]} 29. g4 {[%clk 0:01:26]}  Kd6 {[%clk 0:01:24]} 30. h4 {[%clk 0:01:24]}  e5 {[%clk 0:01:25]} 31. g5 {[%clk 0:01:06]}  hxg5 {[%clk 0:01:21]} 32. fxg5 {[%clk 0:01:02]}  fxg5 {[%clk 0:01:15]} 33. h5 {[%clk 0:01:01]}  exd4 {[%clk 0:01:11]} 34. h6 {[%clk 0:01:01]}  d3 {[%clk 0:01:10]} 35. Kf2 {[%clk 0:01:00]}  d2 {[%clk 0:01:07]} 36. Ke2 {[%clk 0:01:00]}  g4 {[%clk 0:01:08]} 37. h7 {[%clk 0:01:00]}  g3 {[%clk 0:01:09]} 38. h8=Q {[%clk 0:01:00]}  d1=Q+ {[%clk 0:01:08]} 39. Kxd1 {[%clk 0:00:59]}  g2 {[%clk 0:01:09]} 40. Qg7 {[%clk 0:00:59]}  Kc5 {[%clk 0:01:09]} 41. Qxg2 {[%clk 0:00:58]} 1-0


[Site "https://www.chess.com"]

[Event "Titled Tuesday Blitz January 17 Early 2023"]
[White "Zemlyanskii, Ivan"]
[Black "Cramling Bellon, Anna"]
[WhiteFideId "24249971"]
[BlackFideId "32009232"]
[WhiteElo "2300"]
[BlackElo "2043"]
[Result "1-0"]
[Round "06"]
[TimeControl "180+2"]
[Date "2023.01.17"]
[WhiteClock "0:00:51"]
[BlackClock "0:00:01"]

1. d4 {[%clk 0:03:00]}  Nf6 {[%clk 0:02:58]} 2. c4 {[%clk 0:03:01]}  e6 {[%clk 0:02:56]} 3. Nf3 {[%clk 0:03:00]}  d5 {[%clk 0:02:57]} 4. e3 {[%clk 0:03:00]}  c6 {[%clk 0:02:57]} 5. Bd3 {[%clk 0:03:00]}  Nbd7 {[%clk 0:02:56]} 6. O-O {[%clk 0:03:00]}  dxc4 {[%clk 0:02:47]} 7. Bxc4 {[%clk 0:03:01]}  b5 {[%clk 0:02:48]} 8. Bd3 {[%clk 0:03:02]}  Bb7 {[%clk 0:02:48]} 9. e4 {[%clk 0:03:01]}  Be7 {[%clk 0:02:46]} 10. Re1 {[%clk 0:03:00]}  a6 {[%clk 0:02:45]} 11. a4 {[%clk 0:02:55]}  b4 {[%clk 0:02:44]} 12. e5 {[%clk 0:02:53]}  Nd5 {[%clk 0:02:44]} 13. Nbd2 {[%clk 0:02:45]}  c5 {[%clk 0:02:41]} 14. Nc4 {[%clk 0:02:44]}  cxd4 {[%clk 0:02:31]} 15. Nxd4 {[%clk 0:02:45]}  Nc5 {[%clk 0:02:28]} 16. Bf1 {[%clk 0:02:37]}  O-O {[%clk 0:02:08]} 17. Qg4 {[%clk 0:02:33]}  Kh8 {[%clk 0:01:41]} 18. Bd2 {[%clk 0:02:23]}  Qd7 {[%clk 0:01:18]} 19. a5 {[%clk 0:02:17]}  Rac8 {[%clk 0:01:09]} 20. Rac1 {[%clk 0:02:09]}  b3 {[%clk 0:00:54]} 21. Bg5 {[%clk 0:01:50]}  Bxg5 {[%clk 0:00:47]} 22. Qxg5 {[%clk 0:01:51]}  Nb4 {[%clk 0:00:47]} 23. Red1 {[%clk 0:01:34]}  Ne4 {[%clk 0:00:36]} 24. Qf4 {[%clk 0:01:27]}  Rfd8 {[%clk 0:00:33]} 25. f3 {[%clk 0:01:13]}  Nc5 {[%clk 0:00:25]} 26. Nd6 {[%clk 0:00:57]}  Na4 {[%clk 0:00:04]} 27. Nxf7+ {[%clk 0:00:53]}  Kg8 {[%clk 0:00:03]} 28. Nxd8 {[%clk 0:00:54]}  Rxd8 {[%clk 0:00:03]} 29. Nxe6 {[%clk 0:00:51]}  Qxd1 {[%clk 0:00:03]} 30. Rxd1 {[%clk 0:00:51]}  Rxd1 {[%clk 0:00:01]} 31. Qf8# {[%clk 0:00:51]} 1-0


[Site "https://www.chess.com"]

[Event "Titled Tuesday Blitz January 17 Early 2023"]
[White "Makhnev, Denis"]
[Black "Dilmukhametov, Artur"]
[WhiteFideId "13707647"]
[BlackFideId "24179922"]
[WhiteElo "2483"]
[BlackElo "2276"]
[Result "1-0"]
[Round "06"]
[TimeControl "180+2"]
[Date "2023.01.17"]
[WhiteClock "0:01:01"]
[BlackClock "0:00:39"]

1. Nf3 {[%clk 0:03:00]}  Nf6 {[%clk 0:02:53]} 2. d4 {[%clk 0:03:00]}  g6 {[%clk 0:02:50]} 3. Bf4 {[%clk 0:02:58]}  Bg7 {[%clk 0:02:49]} 4. e3 {[%clk 0:02:58]}  O-O {[%clk 0:02:46]} 5. c3 {[%clk 0:02:58]}  d6 {[%clk 0:02:46]} 6. h3 {[%clk 0:02:58]}  Nbd7 {[%clk 0:02:45]} 7. Nbd2 {[%clk 0:02:58]}  Re8 {[%clk 0:02:44]} 8. Bc4 {[%clk 0:02:57]}  h6 {[%clk 0:02:41]} 9. O-O {[%clk 0:02:56]}  e5 {[%clk 0:02:41]} 10. Bh2 {[%clk 0:02:55]}  e4 {[%clk 0:02:39]} 11. Ne1 {[%clk 0:02:55]}  d5 {[%clk 0:02:39]} 12. Bb3 {[%clk 0:02:55]}  c6 {[%clk 0:02:37]} 13. c4 {[%clk 0:02:54]}  Nb6 {[%clk 0:02:32]} 14. Rc1 {[%clk 0:02:53]}  Bd7 {[%clk 0:02:25]} 15. cxd5 {[%clk 0:02:52]}  cxd5 {[%clk 0:02:23]} 16. Nc2 {[%clk 0:02:43]}  Be6 {[%clk 0:02:20]} 17. f3 {[%clk 0:02:29]}  Qd7 {[%clk 0:01:59]} 18. fxe4 {[%clk 0:02:25]}  Nxe4 {[%clk 0:01:59]} 19. Nxe4 {[%clk 0:02:23]}  dxe4 {[%clk 0:01:59]} 20. Na3 {[%clk 0:02:14]}  Nd5 {[%clk 0:01:47]} 21. Nc4 {[%clk 0:02:00]}  Bf8 {[%clk 0:01:32]} 22. Ba4 {[%clk 0:01:55]}  b5 {[%clk 0:01:29]} 23. Ne5 {[%clk 0:01:49]}  Qb7 {[%clk 0:01:10]} 24. Bb3 {[%clk 0:01:21]}  Nxe3 {[%clk 0:01:08]} 25. Bxe6 {[%clk 0:01:15]}  Rxe6 {[%clk 0:01:06]} 26. Qb3 {[%clk 0:01:12]}  Nd5 {[%clk 0:00:50]} 27. Rxf7 {[%clk 0:01:08]}  Qb6 {[%clk 0:00:43]} 28. Qxd5 {[%clk 0:01:05]}  Rd6 {[%clk 0:00:39]} 29. Rxf8+ {[%clk 0:01:01]} 1-0


[Site "https://www.chess.com"]

[Event "Titled Tuesday Blitz January 17 Early 2023"]
[White "MitzyCaballero"]
[Black "Ortega Ruiz, Jose Miguel"]
[BlackFideId "2209713"]
[WhiteElo "2235"]
[BlackElo "2351"]
[Result "0-1"]
[Round "06"]
[TimeControl "180+2"]
[Date "2023.01.17"]
[WhiteClock "0:00:06"]
[BlackClock "0:00:52"]

1. d4 {[%clk 0:03:00]}  a5 {[%clk 0:03:00]} 2. Nf3 {[%clk 0:03:00]}  a4 {[%clk 0:03:01]} 3. c4 {[%clk 0:02:59]}  e6 {[%clk 0:03:02]} 4. e4 {[%clk 0:02:59]}  d5 {[%clk 0:03:01]} 5. Nc3 {[%clk 0:02:56]}  dxe4 {[%clk 0:03:00]} 6. Nxe4 {[%clk 0:02:56]}  Nf6 {[%clk 0:03:01]} 7. Nc3 {[%clk 0:02:49]}  a3 {[%clk 0:03:00]} 8. Be2 {[%clk 0:02:36]}  Bb4 {[%clk 0:02:58]} 9. O-O {[%clk 0:02:36]}  axb2 {[%clk 0:02:59]} 10. Bxb2 {[%clk 0:02:36]}  O-O {[%clk 0:03:00]} 11. Qb3 {[%clk 0:02:35]}  Qe7 {[%clk 0:02:54]} 12. a3 {[%clk 0:02:33]}  Ba5 {[%clk 0:02:53]} 13. a4 {[%clk 0:02:25]}  Rd8 {[%clk 0:02:46]} 14. Ba3 {[%clk 0:02:21]}  Qe8 {[%clk 0:02:46]} 15. Rfd1 {[%clk 0:02:20]}  Bxc3 {[%clk 0:02:44]} 16. Qxc3 {[%clk 0:02:20]}  b6 {[%clk 0:02:44]} 17. Ne5 {[%clk 0:02:03]}  Bb7 {[%clk 0:02:44]} 18. Bf3 {[%clk 0:01:49]}  Bxf3 {[%clk 0:02:44]} 19. Qxf3 {[%clk 0:01:46]}  Rxa4 {[%clk 0:02:45]} 20. Qb7 {[%clk 0:01:30]}  Nbd7 {[%clk 0:02:36]} 21. Nc6 {[%clk 0:01:24]}  Rda8 {[%clk 0:02:35]} 22. Bb2 {[%clk 0:01:08]}  h6 {[%clk 0:02:24]} 23. h3 {[%clk 0:00:53]}  Ne4 {[%clk 0:01:57]} 24. Rdc1 {[%clk 0:00:43]}  Rxa1 {[%clk 0:01:54]} 25. Rxa1 {[%clk 0:00:43]}  Rxa1+ {[%clk 0:01:55]} 26. Bxa1 {[%clk 0:00:44]}  Nd6 {[%clk 0:01:48]} 27. Qxc7 {[%clk 0:00:44]}  Nxc4 {[%clk 0:01:49]} 28. Bc3 {[%clk 0:00:39]}  Nf6 {[%clk 0:01:48]} 29. Ne7+ {[%clk 0:00:37]}  Kh8 {[%clk 0:01:49]} 30. Bb4 {[%clk 0:00:20]}  b5 {[%clk 0:01:45]} 31. Qc5 {[%clk 0:00:17]}  Nb2 {[%clk 0:01:39]} 32. Nc6 {[%clk 0:00:17]}  Nd3 {[%clk 0:01:38]} 33. Qc3 {[%clk 0:00:14]}  Nxb4 {[%clk 0:01:37]} 34. Nxb4 {[%clk 0:00:14]}  Qd7 {[%clk 0:01:37]} 35. Qc5 {[%clk 0:00:14]}  Ne4 {[%clk 0:01:33]} 36. Qb6 {[%clk 0:00:12]}  Nc3 {[%clk 0:01:30]} 37. Nc6 {[%clk 0:00:11]}  Kh7 {[%clk 0:01:15]} 38. Kf1 {[%clk 0:00:12]}  Nd5 {[%clk 0:01:13]} 39. Qc5 {[%clk 0:00:11]}  f6 {[%clk 0:01:10]} 40. Qxb5 {[%clk 0:00:09]}  Ne7 {[%clk 0:01:10]} 41. Qd3+ {[%clk 0:00:05]}  Nf5 {[%clk 0:01:09]} 42. Nb4 {[%clk 0:00:05]}  Qd6 {[%clk 0:01:05]} 43. Nc2 {[%clk 0:00:05]}  Qh2 {[%clk 0:01:06]} 44. Ke2 {[%clk 0:00:04]}  Qxg2 {[%clk 0:01:06]} 45. Ne3 {[%clk 0:00:03]}  Qxh3 {[%clk 0:01:03]} 46. d5 {[%clk 0:00:03]}  Qh5+ {[%clk 0:01:02]} 47. Kd2 {[%clk 0:00:03]}  Kg8 {[%clk 0:00:56]} 48. dxe6 {[%clk 0:00:03]}  Nh4 {[%clk 0:00:56]} 49. Qd8+ {[%clk 0:00:02]}  Kh7 {[%clk 0:00:57]} 50. Qd3+ {[%clk 0:00:03]}  Qg6 {[%clk 0:00:54]} 51. e7 {[%clk 0:00:02]}  Nf3+ {[%clk 0:00:50]} 52. Ke2 {[%clk 0:00:02]}  Ng1+ {[%clk 0:00:49]} 53. Kd2 {[%clk 0:00:02]}  Nf3+ {[%clk 0:00:48]} 54. Kc3 {[%clk 0:00:02]}  Qxd3+ {[%clk 0:00:46]} 55. Kxd3 {[%clk 0:00:02]}  Ne5+ {[%clk 0:00:46]} 56. Kd4 {[%clk 0:00:02]}  Nc6+ {[%clk 0:00:46]} 57. Ke4 {[%clk 0:00:02]}  Nxe7 {[%clk 0:00:47]} 58. Nf5 {[%clk 0:00:02]}  Nxf5 {[%clk 0:00:47]} 59. Kxf5 {[%clk 0:00:02]}  h5 {[%clk 0:00:46]} 60. Kf4 {[%clk 0:00:02]}  Kg6 {[%clk 0:00:46]} 61. Kg3 {[%clk 0:00:02]}  Kg5 {[%clk 0:00:47]} 62. f4+ {[%clk 0:00:02]}  Kf5 {[%clk 0:00:47]} 63. Kh4 {[%clk 0:00:03]}  Kxf4 {[%clk 0:00:48]} 64. Kxh5 {[%clk 0:00:03]}  g5 {[%clk 0:00:48]} 65. Kg6 {[%clk 0:00:04]}  g4 {[%clk 0:00:49]} 66. Kxf6 {[%clk 0:00:05]}  g3 {[%clk 0:00:50]} 67. Kg6 {[%clk 0:00:05]}  g2 {[%clk 0:00:51]} 68. Kf6 {[%clk 0:00:06]}  g1=Q {[%clk 0:00:52]} 0-1


[Site "https://www.chess.com"]